[Event "Latvijas 2022. gada jauniešu čempionāta fināls"]
[Site "Riga, Latvia"]
[Date "2022.06.15"]
[Round "6.22"]
[White "Tabors, Emils"]
[Black "Otrohovs, Maksims"]
[Result "1-0"]
[TimeControl "3600+30"]
[WhiteElo "1813"]
[BlackElo "1098"]

1. d4 {[%clk 01:00:57]} {[%emt 00:00:02]} Nf6 {[%clk 01:00:57]} {[%emt
00:00:04]} 2. c4 {[%clk 01:01:22]} {[%emt 00:00:06]} e6 {[%clk 01:01:24]}
{[%emt 00:00:03]} 3. Nc3 {[%clk 01:01:45]} {[%emt 00:00:05]} Bb4 {[%clk
01:01:50]} {[%emt 00:00:04]} 4. e3 {[%clk 01:02:10]} {[%emt 00:00:05]} O-O
{[%clk 01:02:14]} {[%emt 00:00:06]} 5. Nge2 {[%clk 01:02:37]} {[%emt 00:00:03]}
Re8 {[%clk 01:02:28]} {[%emt 00:00:17]} 6. a3 {[%clk 01:03:01]} {[%emt
00:00:06]} Bf8 {[%clk 01:02:52]} {[%emt 00:00:05]} 7. Nf4 {[%clk 00:59:58]}
{[%emt 00:03:33]} d5 {[%clk 01:01:05]} {[%emt 00:02:18]} 8. cxd5 {[%clk
00:59:54]} {[%emt 00:00:34]} exd5 {[%clk 01:01:20]} {[%emt 00:00:15]} 9. Bd3
{[%clk 00:59:56]} {[%emt 00:00:27]} Qd6 {[%clk 00:50:46]} {[%emt 00:11:05]} 10.
O-O {[%clk 00:59:21]} {[%emt 00:01:04]} c6 {[%clk 00:49:34]} {[%emt 00:01:43]}
11. f3 {[%clk 00:55:17]} {[%emt 00:04:34]} g5 {[%clk 00:45:18]} {[%emt
00:04:46]} 12. Nfe2 {[%clk 00:54:17]} {[%emt 00:01:30]} h5 {[%clk 00:41:40]}
{[%emt 00:04:08]} 13. e4 {[%clk 00:50:58]} {[%emt 00:03:49]} dxe4 {[%clk
00:40:15]} {[%emt 00:01:55]} 14. Nxe4 {[%clk 00:51:17]} {[%emt 00:00:11]} Nxe4
{[%clk 00:40:18]} {[%emt 00:00:27]} 15. fxe4 {[%clk 00:51:35]} {[%emt
00:00:12]} Bg4 {[%clk 00:38:59]} {[%emt 00:01:48]} 16. Bc4 {[%clk 00:36:31]}
{[%emt 00:15:35]} Rxe4 {[%clk 00:30:10]} {[%emt 00:09:19]} 17. Qd2 {[%clk
00:10:04]} {[%emt 00:26:57]} Bg7 {[%clk 00:21:01]} {[%emt 00:09:38]} 18. Rxf7
{[%clk 00:09:06]} {[%emt 00:01:28]} Be6 {[%clk 00:18:15]} {[%emt 00:03:17]} 19.
Rxg7+ {[%clk 00:07:33]} {[%emt 00:02:03]} Kxg7 {[%clk 00:18:37]} {[%emt
00:00:08]} 20. Qxg5+ {[%clk 00:07:59]} {[%emt 00:00:05]} Kf8 {[%clk 00:16:53]}
{[%emt 00:02:14]} 21. Qf6+ {[%clk 00:08:11]} {[%emt 00:00:18]} Kg8 {[%clk
00:17:16]} {[%emt 00:00:05]} 22. Qg6+ {[%clk 00:08:29]} {[%emt 00:00:13]} Kf8
{[%clk 00:17:37]} {[%emt 00:00:09]} 23. Bh6+ {[%clk 00:08:35]} {[%emt
00:00:24]} 1-0

[Event "Latvijas 2022. gada jauniešu čempionāta fināls"]
[Site "Riga, Latvia"]
[Date "2022.06.15"]
[Round "6.23"]
[White "Sterns, Tomass Kristians"]
[Black "Podojniks, Marks Ernests"]
[Result "0-1"]
[TimeControl "3600+30"]
[WhiteElo "1431"]
[BlackElo "1372"]

1. d4 {[%clk 01:00:57]} {[%emt 00:00:02]} d5 {[%clk 01:00:57]} {[%emt
00:00:04]} 2. Nf3 {[%clk 01:01:23]} {[%emt 00:00:04]} Nf6 {[%clk 01:01:22]}
{[%emt 00:00:05]} 3. c4 {[%clk 01:01:45]} {[%emt 00:00:08]} e6 {[%clk
01:01:37]} {[%emt 00:00:16]} 4. Nc3 {[%clk 01:02:08]} {[%emt 00:00:07]} c6
{[%clk 01:01:57]} {[%emt 00:00:09]} 5. Bg5 {[%clk 01:02:21]} {[%emt 00:00:16]}
Be7 {[%clk 01:02:20]} {[%emt 00:00:08]} 6. e3 {[%clk 01:02:39]} {[%emt
00:00:12]} h6 {[%clk 01:02:36]} {[%emt 00:00:15]} 7. Bh4 {[%clk 01:02:11]}
{[%emt 00:00:57]} O-O {[%clk 01:02:52]} {[%emt 00:00:14]} 8. Bd3 {[%clk
01:01:20]} {[%emt 00:01:21]} dxc4 {[%clk 01:02:41]} {[%emt 00:00:41]} 9. Bxc4
{[%clk 01:01:43]} {[%emt 00:00:07]} b5 {[%clk 01:03:05]} {[%emt 00:00:06]} 10.
Bd3 {[%clk 01:02:03]} {[%emt 00:00:10]} a6 {[%clk 01:03:18]} {[%emt 00:00:17]}
11. O-O {[%clk 01:01:49]} {[%emt 00:00:44]} Bb7 {[%clk 01:03:32]} {[%emt
00:00:16]} 12. Rc1 {[%clk 01:01:47]} {[%emt 00:00:32]} Nbd7 {[%clk 01:03:42]}
{[%emt 00:00:20]} 13. e4 {[%clk 00:58:25]} {[%emt 00:03:52]} Rc8 {[%clk
01:01:25]} {[%emt 00:02:48]} 14. e5 {[%clk 00:54:37]} {[%emt 00:04:17]} Nd5
{[%clk 01:00:27]} {[%emt 00:01:27]} 15. Bxe7 {[%clk 00:54:51]} {[%emt
00:00:16]} Qxe7 {[%clk 01:00:30]} {[%emt 00:00:28]} 16. Ne4 {[%clk 00:54:49]}
{[%emt 00:00:32]} Rc7 {[%clk 00:58:32]} {[%emt 00:02:29]} 17. Bb1 {[%clk
00:50:38]} {[%emt 00:04:40]} c5 {[%clk 00:55:07]} {[%emt 00:03:56]} 18. dxc5
{[%clk 00:48:39]} {[%emt 00:02:29]} Nxc5 {[%clk 00:55:02]} {[%emt 00:00:34]} 19.
Nxc5 {[%clk 00:47:18]} {[%emt 00:01:51]} Rxc5 {[%clk 00:55:24]} {[%emt
00:00:07]} 20. Qd3 {[%clk 00:47:30]} {[%emt 00:00:19]} g6 {[%clk 00:55:22]}
{[%emt 00:00:32]} 21. Rcd1 {[%clk 00:44:30]} {[%emt 00:03:30]} Nf4 {[%clk
00:53:51]} {[%emt 00:02:00]} 22. Qe3 {[%clk 00:41:20]} {[%emt 00:03:39]} Bxf3
{[%clk 00:53:31]} {[%emt 00:00:50]} 23. Qxf3 {[%clk 00:41:36]} {[%emt
00:00:15]} Qg5 {[%clk 00:53:40]} {[%emt 00:00:21]} 24. Rd4 {[%clk 00:39:39]}
{[%emt 00:02:26]} Nd5 {[%clk 00:51:09]} {[%emt 00:03:02]} 25. Qe4 {[%clk
00:39:23]} {[%emt 00:00:46]} Rc1 {[%clk 00:49:45]} {[%emt 00:01:55]} 26. f4
{[%clk 00:39:27]} {[%emt 00:00:26]} Rxf1+ {[%clk 00:50:03]} {[%emt 00:00:13]}
27. Kxf1 {[%clk 00:39:55]} {[%emt 00:00:02]} Qh4 {[%clk 00:49:31]} {[%emt
00:00:59]} 28. Kg1 {[%clk 00:38:32]} {[%emt 00:01:56]} Rc8 {[%clk 00:49:11]}
{[%emt 00:00:50]} 29. g3 {[%clk 00:38:09]} {[%emt 00:00:53]} Rc1+ {[%clk
00:46:32]} {[%emt 00:03:08]} 30. Kg2 {[%clk 00:38:34]} {[%emt 00:00:05]} Nxf4+
{[%clk 00:40:16]} {[%emt 00:06:47]} 31. gxf4 {[%clk 00:36:44]} {[%emt
00:02:20]} Qg4+ {[%clk 00:40:38]} {[%emt 00:00:08]} 32. Kf2 {[%clk 00:34:34]}
{[%emt 00:02:40]} Qg1+ {[%clk 00:40:59]} {[%emt 00:00:08]} 33. Kf3 {[%clk
00:31:51]} {[%emt 00:03:14]} Rf1+ {[%clk 00:41:21]} {[%emt 00:00:08]} 34. Ke2
{[%clk 00:31:52]} {[%emt 00:00:29]} Re1+ {[%clk 00:41:46]} {[%emt 00:00:05]} 35.
Kf3 {[%clk 00:31:59]} {[%emt 00:00:23]} Rxe4 {[%clk 00:42:03]} {[%emt
00:00:13]} 36. Rd8+ {[%clk 00:32:15]} {[%emt 00:00:13]} Kg7 {[%clk 00:42:21]}
{[%emt 00:00:11]} 37. Bxe4 {[%clk 00:32:33]} {[%emt 00:00:14]} Qf1+ {[%clk
00:41:56]} {[%emt 00:00:51]} 38. Ke3 {[%clk 00:30:51]} {[%emt 00:02:16]} Qh3+
{[%clk 00:40:53]} {[%emt 00:01:24]} 39. Bf3 {[%clk 00:30:26]} {[%emt 00:01:04]}
Qxh2 {[%clk 00:40:51]} {[%emt 00:00:33]} 40. Rd2 {[%clk 00:30:09]} {[%emt
00:00:47]} Qg1+ {[%clk 00:41:07]} {[%emt 00:00:13]} 41. Rf2 {[%clk 00:30:10]}
{[%emt 00:00:30]} Qc1+ {[%clk 00:41:12]} {[%emt 00:00:18]} 42. Rd2 {[%clk
00:30:30]} {[%emt 00:00:17]} Qc5+ {[%clk 00:40:41]} {[%emt 00:00:53]} 43. Rd4
{[%clk 00:30:30]} {[%emt 00:00:38]} f6 {[%clk 00:40:48]} {[%emt 00:00:24]} 44.
exf6+ {[%clk 00:29:47]} {[%emt 00:01:12]} Kxf6 {[%clk 00:41:10]} {[%emt
00:00:08]} 45. Be4 {[%clk 00:29:56]} {[%emt 00:00:21]} e5 {[%clk 00:41:19]}
{[%emt 00:00:21]} 0-1

[Event "Latvijas 2022. gada jauniešu čempionāta fināls"]
[Site "Riga, Latvia"]
[Date "2022.06.15"]
[Round "6.24"]
[White "Lahs, Einars"]
[Black "Stinka, Gustavs"]
[Result "1-0"]
[TimeControl "3600+30"]
[WhiteElo "1675"]
[BlackElo "1086"]

1. e4 {[%clk 00:48:26]} {[%emt 00:12:33]} e5 {[%clk 01:00:56]} {[%emt
00:00:04]} 2. Nf3 {[%clk 00:48:53]} {[%emt 00:00:03]} Nc6 {[%clk 01:01:19]}
{[%emt 00:00:08]} 3. Bb5 {[%clk 00:49:18]} {[%emt 00:00:05]} Nd4 {[%clk
01:01:43]} {[%emt 00:00:06]} 4. Nxd4 {[%clk 00:49:28]} {[%emt 00:00:19]} exd4
{[%clk 01:02:04]} {[%emt 00:00:09]} 5. O-O {[%clk 00:49:40]} {[%emt 00:00:18]}
c6 {[%clk 01:02:17]} {[%emt 00:00:17]} 6. Bc4 {[%clk 00:50:03]} {[%emt
00:00:08]} Nf6 {[%clk 01:02:40]} {[%emt 00:00:06]} 7. d3 {[%clk 00:49:35]}
{[%emt 00:00:58]} d5 {[%clk 01:03:03]} {[%emt 00:00:07]} 8. exd5 {[%clk
00:49:51]} {[%emt 00:00:16]} Nxd5 {[%clk 01:03:04]} {[%emt 00:00:28]} 9. Qh5
{[%clk 00:48:19]} {[%emt 00:01:56]} Be6 {[%clk 01:02:52]} {[%emt 00:00:48]} 10.
Re1 {[%clk 00:47:13]} {[%emt 00:01:37]} Qd7 {[%emt 00:08:30]} 11. Qe5 {[%emt
00:01:34]} Bd6 {[%clk 01:01:28]} {[%emt 00:00:07]} 12. Qxd4 {[%clk 00:32:30]}
{[%emt 00:01:33]} O-O-O 13. Qxa7 {[%clk 00:31:03]} {[%emt 00:07:33]} Nb4 14.
Bxe6 {[%emt 00:02:07]} fxe6 {[%emt 00:01:10]} 15. Na3 {[%emt 00:01:01]} Rhf8
{[%emt 00:01:47]} 16. Be3 {[%clk 00:23:30]} {[%emt 00:01:23]} Rf5 17. Nc4
{[%clk 00:21:38]} {[%emt 00:11:11]} Nd5 18. Nxd6+ {[%emt 00:03:49]} Qxd6 {[%clk
00:55:04]} {[%emt 00:00:04]} 19. Qc5 {[%clk 00:17:48]} {[%emt 00:04:19]} Qc7
{[%clk 00:54:35]} {[%emt 00:01:04]} 20. Qc4 {[%clk 00:17:21]} {[%emt 00:00:55]}
Rdf8 {[%emt 00:01:42]} 21. Re2 {[%clk 00:15:21]} {[%emt 00:02:11]} Nxe3 {[%clk
00:51:52]} {[%emt 00:02:21]} 22. Qxe6+ {[%clk 00:15:10]} {[%emt 00:00:41]} Kb8
{[%clk 00:52:08]} {[%emt 00:00:13]} 23. Qxe3 {[%clk 00:15:32]} {[%emt
00:00:09]} b5 {[%clk 00:52:04]} {[%emt 00:00:35]} 24. Rf1 {[%emt 00:00:39]}
R8f7 {[%clk 00:52:24]} {[%emt 00:00:05]} 25. Qg3 {[%clk 00:14:01]} {[%emt
00:01:55]} Rf4 {[%clk 00:52:32]} {[%emt 00:00:23]} 26. Re4 {[%clk 00:14:05]}
{[%emt 00:00:26]} Kb7 {[%clk 00:52:50]} {[%emt 00:00:11]} 27. Rxf4 {[%clk
00:14:21]} {[%emt 00:00:15]} Rxf4 {[%clk 00:53:14]} {[%emt 00:00:06]} 28. Re1
{[%clk 00:14:29]} {[%emt 00:00:22]} Qf7 {[%clk 00:53:02]} {[%emt 00:00:42]} 29.
Qe3 {[%clk 00:14:36]} {[%emt 00:00:23]} Ka6 {[%emt 00:03:35]} 30. Qe8 {[%clk
00:12:37]} {[%emt 00:01:15]} Rxf2 {[%clk 00:49:16]} {[%emt 00:02:26]} 31. Qxc6+
{[%clk 00:12:01]} {[%emt 00:01:05]} Ka5 {[%clk 00:49:07]} {[%emt 00:00:36]} 32.
Qc3+ {[%clk 00:08:26]} {[%emt 00:04:07]} Ka6 {[%clk 00:49:01]} {[%emt
00:00:37]} 33. Qc8+ {[%clk 00:05:20]} {[%emt 00:03:36]} Ka5 {[%clk 00:48:25]}
{[%emt 00:01:04]} 34. Qd8+ {[%clk 00:04:26]} {[%emt 00:01:27]} Ka6 {[%clk
00:48:14]} {[%emt 00:00:40]} 35. Qd6+ {[%clk 00:04:41]} {[%emt 00:00:15]} Ka5
{[%clk 00:48:27]} {[%emt 00:00:16]} 36. b4+ {[%clk 00:02:07]} {[%emt 00:03:06]}
Ka4 {[%clk 00:48:48]} {[%emt 00:00:09]} 37. Qa6+ {[%clk 00:02:33]} {[%emt
00:00:04]} Kxb4 {[%clk 00:48:43]} {[%emt 00:00:34]} 38. Rb1+ {[%clk 00:02:19]}
{[%emt 00:00:45]} Kc3 {[%clk 00:47:55]} {[%emt 00:01:18]} 39. Qa3+ {[%clk
00:02:15]} {[%emt 00:00:34]} Kd2 {[%clk 00:46:24]} {[%emt 00:02:01]} 40. Qc1+
{[%clk 00:02:00]} {[%emt 00:00:44]} Kc3 {[%clk 00:45:52]} {[%emt 00:01:03]} 41.
Qe1+ {[%clk 00:01:38]} {[%emt 00:00:52]} Kxc2 {[%clk 00:46:08]} {[%emt
00:00:16]} 42. Rc1+ {[%clk 00:01:19]} {[%emt 00:00:48]} Kxd3 {[%clk 00:45:43]}
{[%emt 00:00:55]} 43. Qxf2 {[%clk 00:01:43]} {[%emt 00:00:06]} Qe6 {[%clk
00:45:14]} {[%emt 00:00:59]} 44. Qc2+ {[%clk 00:01:51]} {[%emt 00:00:22]} Kd4
{[%clk 00:45:27]} {[%emt 00:00:17]} 45. Rd1+ {[%clk 00:02:08]} {[%emt
00:00:14]} Ke5 {[%clk 00:45:46]} {[%emt 00:00:11]} 46. Re1+ {[%clk 00:02:29]}
{[%emt 00:00:08]} Kd6 {[%clk 00:46:07]} {[%emt 00:00:08]} 47. Rxe6+ {[%clk
00:02:54]} {[%emt 00:00:05]} Kxe6 {[%clk 00:46:28]} {[%emt 00:00:09]} 48. Qc6+
{[%clk 00:03:20]} {[%emt 00:00:04]} Ke5 {[%clk 00:46:48]} {[%emt 00:00:09]} 49.
Qxb5+ {[%clk 00:03:44]} {[%emt 00:00:07]} Kd4 {[%clk 00:47:10]} {[%emt
00:00:09]} 50. a4 {[%clk 00:04:10]} {[%emt 00:00:05]} g5 {[%clk 00:47:30]}
{[%emt 00:00:09]} 51. a5 {[%clk 00:04:36]} {[%emt 00:00:04]} g4 {[%clk
00:47:54]} {[%emt 00:00:05]} 52. a6 {[%clk 00:05:03]} {[%emt 00:00:04]} h5
{[%clk 00:48:15]} {[%emt 00:00:09]} 53. a7 {[%clk 00:05:27]} {[%emt 00:00:05]}
h4 {[%clk 00:48:20]} {[%emt 00:00:24]} 54. a8=Q {[%clk 00:05:45]} {[%emt
00:00:12]} g3 {[%clk 00:48:46]} {[%emt 00:00:05]} 55. Qad5+ {[%clk 00:06:03]}
{[%emt 00:00:12]} Kc3 {[%clk 00:49:05]} {[%emt 00:00:10]} 56. Qbb3# {[%clk
00:06:24]} {[%emt 00:00:10]} 1-0

[Event "Latvijas 2022. gada jauniešu čempionāta fināls"]
[Site "Riga, Latvia"]
[Date "2022.06.15"]
[Round "6.25"]
[White "Steinbergs, Raivo"]
[Black "Krastins, Arturs"]
[Result "1-0"]
[TimeControl "3600+30"]
[WhiteElo "1397"]
[BlackElo "1506"]

1. d4 {[%clk 01:00:56]} {[%emt 00:00:04]} g6 {[%clk 01:00:47]} {[%emt
00:00:14]} 2. c4 {[%clk 01:01:15]} {[%emt 00:00:11]} Bg7 {[%clk 01:01:13]}
{[%emt 00:00:04]} 3. Nc3 {[%clk 01:01:36]} {[%emt 00:00:09]} d6 {[%clk
01:01:15]} {[%emt 00:00:27]} 4. Nf3 {[%clk 01:01:53]} {[%emt 00:00:13]} Nd7
{[%clk 01:01:39]} {[%emt 00:00:07]} 5. e3 {[%clk 00:59:04]} {[%emt 00:03:18]}
b6 {[%clk 01:01:02]} {[%emt 00:01:08]} 6. d5 {[%clk 00:58:44]} {[%emt
00:00:49]} e5 {[%clk 00:59:12]} {[%emt 00:02:21]} 7. Be2 {[%clk 00:58:01]}
{[%emt 00:01:13]} f5 {[%clk 00:59:31]} {[%emt 00:00:11]} 8. b4 {[%clk
00:50:48]} {[%emt 00:07:43]} a5 {[%clk 00:56:18]} {[%emt 00:03:42]} 9. bxa5
{[%clk 00:48:08]} {[%emt 00:03:11]} Rxa5 {[%clk 00:52:08]} {[%emt 00:04:40]} 10.
Nb5 {[%clk 00:48:10]} {[%emt 00:00:26]} Nc5 {[%clk 00:51:21]} {[%emt 00:01:19]}
11. a4 {[%clk 00:45:48]} {[%emt 00:02:52]} g5 {[%clk 00:47:31]} {[%emt
00:04:19]} 12. Bd2 {[%clk 00:42:55]} {[%emt 00:03:23]} Ra6 {[%clk 00:46:20]}
{[%emt 00:01:38]} 13. Bc3 {[%clk 00:39:46]} {[%emt 00:03:41]} g4 {[%clk
00:45:35]} {[%emt 00:01:17]} 14. Nd2 {[%clk 00:39:22]} {[%emt 00:00:53]} Nf6
{[%clk 00:44:35]} {[%emt 00:01:31]} 15. f3 {[%clk 00:39:16]} {[%emt 00:00:36]}
h5 {[%clk 00:44:30]} {[%emt 00:00:34]} 16. Qc2 {[%clk 00:35:34]} {[%emt
00:04:11]} O-O {[%clk 00:42:58]} {[%emt 00:02:03]} 17. a5 {[%clk 00:31:44]}
{[%emt 00:04:22]} Bh6 {[%clk 00:41:14]} {[%emt 00:02:13]} 18. f4 {[%clk
00:29:45]} {[%emt 00:02:28]} exf4 {[%clk 00:41:25]} {[%emt 00:00:19]} 19. exf4
{[%clk 00:30:09]} {[%emt 00:00:07]} Bxf4 {[%clk 00:41:10]} {[%emt 00:00:45]} 20.
O-O {[%clk 00:30:34]} {[%emt 00:00:05]} Be3+ {[%clk 00:38:10]} {[%emt
00:03:17]} 21. Kh1 {[%clk 00:30:59]} {[%emt 00:00:18]} Nfe4 {[%clk 00:38:17]}
{[%emt 00:00:22]} 22. Nxe4 {[%clk 00:30:22]} {[%emt 00:01:06]} Nxe4 {[%clk
00:37:29]} {[%emt 00:01:19]} 23. Bd3 {[%clk 00:30:46]} {[%emt 00:00:07]} Nxc3
{[%clk 00:35:59]} {[%emt 00:01:59]} 24. Qxc3 {[%clk 00:30:50]} {[%emt
00:00:27]} f4 {[%clk 00:30:40]} {[%emt 00:05:48]} 25. Bc2 {[%clk 00:20:25]}
{[%emt 00:10:55]} Rxa5 {[%clk 00:22:25]} {[%emt 00:08:46]} 26. Rxa5 {[%clk
00:20:41]} {[%emt 00:00:14]} bxa5 {[%clk 00:22:41]} {[%emt 00:00:14]} 27. Qxa5
{[%clk 00:17:41]} {[%emt 00:03:30]} Qh4 {[%clk 00:22:27]} {[%emt 00:00:39]} 28.
Qxc7 {[%clk 00:17:58]} {[%emt 00:00:17]} Rf7 {[%clk 00:14:06]} {[%emt
00:08:51]} 29. Qxc8+ {[%clk 00:18:06]} {[%emt 00:00:22]} Kg7 {[%clk 00:14:28]}
{[%emt 00:00:06]} 30. Qe6 {[%clk 00:16:10]} {[%emt 00:02:26]} f3 {[%clk
00:12:39]} {[%emt 00:02:21]} 31. Qg6+ {[%clk 00:14:55]} {[%emt 00:01:44]} Kf8
{[%clk 00:12:40]} {[%emt 00:00:28]} 32. Qxd6+ {[%clk 00:14:30]} {[%emt
00:00:56]} Kg7 {[%clk 00:10:28]} {[%emt 00:02:41]} 33. Qg6+ {[%clk 00:14:50]}
{[%emt 00:00:10]} Kf8 {[%clk 00:10:46]} {[%emt 00:00:12]} 34. Qd6+ {[%clk
00:15:02]} {[%emt 00:00:18]} Kg7 {[%clk 00:08:50]} {[%emt 00:02:27]} 35. Qe5+
{[%clk 00:11:45]} {[%emt 00:03:46]} Kg8 {[%clk 00:05:49]} {[%emt 00:03:28]} 36.
Qxe3 {[%clk 00:09:16]} {[%emt 00:03:02]} g3 {[%clk 00:03:42]} {[%emt 00:02:38]}
37. Qe8+ {[%clk 00:08:51]} {[%emt 00:00:55]} Kg7 {[%clk 00:03:26]} {[%emt
00:00:46]} 38. Qe5+ {[%clk 00:09:00]} {[%emt 00:00:19]} Kf8 {[%clk 00:03:11]}
{[%emt 00:00:44]} 39. Qh8+ {[%clk 00:09:04]} {[%emt 00:00:28]} Ke7 {[%clk
00:03:29]} {[%emt 00:00:14]} 40. Re1+ {[%clk 00:09:22]} {[%emt 00:00:10]} 1-0

[Event "Latvijas 2022. gada jauniešu čempionāta fināls"]
[Site "Riga, Latvia"]
[Date "2022.06.15"]
[Round "6.26"]
[White "Adamovics, Aleksejs"]
[Black "Petrovs, Renars"]
[Result "1-0"]
[TimeControl "3600+30"]
[WhiteElo "1922"]
[BlackElo "1327"]

1. d4 {[%clk 01:00:56]} {[%emt 00:00:04]} d5 {[%clk 01:00:57]} {[%emt
00:00:04]} 2. c4 {[%clk 01:01:18]} {[%emt 00:00:08]} c6 {[%clk 01:01:20]}
{[%emt 00:00:06]} 3. cxd5 {[%clk 01:01:34]} {[%emt 00:00:14]} cxd5 {[%clk
01:01:20]} {[%emt 00:00:30]} 4. Nc3 {[%clk 01:01:58]} {[%emt 00:00:06]} Nf6
{[%clk 01:01:28]} {[%emt 00:00:22]} 5. Bf4 {[%clk 01:02:21]} {[%emt 00:00:07]}
a6 {[%clk 01:01:23]} {[%emt 00:00:35]} 6. e3 {[%clk 01:02:20]} {[%emt
00:00:31]} e6 {[%clk 01:00:38]} {[%emt 00:01:15]} 7. Bd3 {[%clk 01:02:15]}
{[%emt 00:00:34]} Bd6 {[%clk 01:00:26]} {[%emt 00:00:43]} 8. Nge2 {[%clk
01:01:43]} {[%emt 00:01:02]} Nc6 {[%clk 00:57:56]} {[%emt 00:03:00]} 9. O-O
{[%clk 01:01:31]} {[%emt 00:00:42]} O-O {[%clk 00:58:19]} {[%emt 00:00:07]} 10.
Rc1 {[%clk 01:01:16]} {[%emt 00:00:44]} Bxf4 {[%clk 00:57:57]} {[%emt
00:00:54]} 11. Nxf4 {[%clk 01:01:36]} {[%emt 00:00:09]} Qd6 {[%clk 00:50:20]}
{[%emt 00:08:08]} 12. Qd2 {[%clk 00:53:17]} {[%emt 00:08:48]} b5 {[%clk
00:48:19]} {[%emt 00:02:31]} 13. Bb1 {[%clk 00:51:31]} {[%emt 00:02:15]} Bb7
{[%clk 00:47:36]} {[%emt 00:01:14]} 14. Nd3 {[%clk 00:50:43]} {[%emt 00:01:18]}
Rac8 {[%clk 00:45:46]} {[%emt 00:02:21]} 15. Nc5 {[%clk 00:48:44]} {[%emt
00:02:28]} Rc7 {[%clk 00:45:09]} {[%emt 00:01:07]} 16. f4 {[%clk 00:45:08]}
{[%emt 00:04:07]} Ne7 {[%clk 00:41:25]} {[%emt 00:04:13]} 17. Qe2 {[%clk
00:39:46]} {[%emt 00:05:51]} g6 {[%clk 00:36:15]} {[%emt 00:05:42]} 18. Bd3
{[%clk 00:32:46]} {[%emt 00:07:30]} Nf5 {[%clk 00:29:40]} {[%emt 00:07:04]} 19.
Nb1 {[%clk 00:26:14]} {[%emt 00:07:02]} b4 {[%clk 00:19:59]} {[%emt 00:10:12]}
20. Nd2 {[%clk 00:21:08]} {[%emt 00:05:35]} Nd7 {[%clk 00:17:04]} {[%emt
00:03:25]} 21. Ndb3 {[%clk 00:19:51]} {[%emt 00:01:47]} Nxc5 {[%clk 00:16:53]}
{[%emt 00:00:41]} 22. Nxc5 {[%clk 00:18:43]} {[%emt 00:01:39]} Ne7 {[%clk
00:14:14]} {[%emt 00:03:09]} 23. Rc2 {[%clk 00:16:24]} {[%emt 00:02:47]} Rfc8
{[%clk 00:10:25]} {[%emt 00:04:20]} 24. Rfc1 {[%clk 00:16:34]} {[%emt
00:00:20]} Qb6 {[%clk 00:09:31]} {[%emt 00:01:22]} 25. b3 {[%clk 00:15:46]}
{[%emt 00:01:21]} Kg7 {[%clk 00:07:56]} {[%emt 00:02:04]} 26. h3 {[%clk
00:14:33]} {[%emt 00:01:43]} a5 {[%clk 00:08:10]} {[%emt 00:00:17]} 27. Kh1
{[%clk 00:13:35]} h5 {[%clk 00:07:49]} {[%emt 00:02:19]} 28. Qf2 {[%clk
00:12:16]} Bc6 {[%clk 00:06:26]} {[%emt 00:03:42]} 29. Qe2 {[%clk 00:11:57]}
Bb7 {[%clk 00:06:10]} {[%emt 00:01:36]} 30. g3 {[%clk 00:11:00]} Rc6 {[%clk
00:05:13]} {[%emt 00:02:53]} 31. Bb5 {[%clk 00:10:12]} R6c7 {[%clk 00:05:07]}
{[%emt 00:01:55]} 32. Kg2 {[%clk 00:10:09]} {[%emt 00:00:32]} Rh8 {[%clk
00:03:43]} {[%emt 00:01:54]} 33. Nxe6+ {[%clk 00:09:34]} {[%emt 00:01:05]} Qxe6
{[%clk 00:03:08]} {[%emt 00:01:05]} 34. Rxc7 {[%clk 00:09:54]} {[%emt
00:00:10]} Bc8 {[%clk 00:02:55]} {[%emt 00:00:43]} 35. Kg1 {[%clk 00:09:37]}
{[%emt 00:00:46]} Nf5 {[%clk 00:02:59]} {[%emt 00:00:27]} 36. Qf2 {[%clk
00:08:24]} {[%emt 00:01:42]} Nd6 {[%clk 00:02:45]} {[%emt 00:00:46]} 37. Bd3
{[%clk 00:08:27]} {[%emt 00:00:27]} Qxh3 {[%clk 00:02:50]} {[%emt 00:00:25]} 38.
R1c6 {[%clk 00:06:51]} {[%emt 00:02:03]} Ne4 {[%clk 00:02:34]} {[%emt
00:00:48]} 39. Bxe4 {[%clk 00:06:49]} {[%emt 00:00:32]} dxe4 {[%clk 00:02:59]}
{[%emt 00:00:05]} 40. Qg2 {[%clk 00:06:48]} {[%emt 00:00:31]} Qg4 {[%clk
00:02:48]} {[%emt 00:00:41]} 41. Rc1 {[%clk 00:05:43]} {[%emt 00:01:35]} Ba6
{[%clk 00:02:28]} {[%emt 00:00:50]} 42. R7c5 {[%clk 00:05:58]} {[%emt
00:00:14]} Bd3 {[%clk 00:02:05]} {[%emt 00:00:54]} 43. Rg5 {[%clk 00:05:40]}
{[%emt 00:00:47]} Qd7 {[%clk 00:02:07]} {[%emt 00:00:29]} 44. Rcc5 {[%clk
00:05:08]} {[%emt 00:01:01]} a4 {[%clk 00:02:22]} {[%emt 00:00:16]} 45. f5
{[%clk 00:03:41]} {[%emt 00:01:56]} axb3 {[%clk 00:02:34]} {[%emt 00:00:18]} 46.
fxg6 {[%clk 00:03:33]} {[%emt 00:00:38]} fxg6 {[%clk 00:02:27]} {[%emt
00:00:37]} 47. Rcd5 {[%clk 00:02:17]} {[%emt 00:01:44]} Qc7 {[%clk 00:02:20]}
{[%emt 00:00:39]} 48. Rc5 {[%clk 00:02:05]} {[%emt 00:00:42]} Qd7 {[%clk
00:02:26]} {[%emt 00:00:23]} 49. Rgd5 {[%clk 00:01:37]} {[%emt 00:01:00]} Qa7
{[%clk 00:01:55]} {[%emt 00:01:01]} 50. Ra5 {[%clk 00:01:20]} {[%emt 00:00:47]}
Qc7 {[%clk 00:01:51]} {[%emt 00:00:33]} 51. Rdc5 {[%clk 00:01:19]} {[%emt
00:00:31]} Qd7 {[%clk 00:02:10]} {[%emt 00:00:11]} 52. Rd5 {[%clk 00:01:00]}
{[%emt 00:00:50]} Qc7 {[%clk 00:02:28]} {[%emt 00:00:12]} 53. Rdc5 {[%clk
00:01:09]} {[%emt 00:00:21]} Qd7 {[%clk 00:02:49]} {[%emt 00:00:09]} 54. axb3
{[%clk 00:01:27]} {[%emt 00:00:12]} Rf8 {[%clk 00:03:06]} {[%emt 00:00:13]} 55.
Ra2 {[%clk 00:00:56]} {[%emt 00:01:01]} Rf1+ {[%clk 00:03:02]} {[%emt
00:00:34]} 56. Kh2 {[%clk 00:01:09]} Qf7 {[%clk 00:03:12]} {[%emt 00:00:36]} 57.
d5 {[%clk 00:00:51]} Kh6 {[%clk 00:01:30]} {[%emt 00:03:00]} 58. d6 {[%clk
00:00:52]} Qd7 {[%clk 00:01:42]} {[%emt 00:00:47]} 59. Rf2 {[%clk 00:00:38]}
Qxd6 {[%clk 00:01:28]} {[%emt 00:01:28]} 60. Rc8 {[%clk 00:00:44]} Qe6 {[%clk
00:00:56]} {[%emt 00:01:27]} 61. Rh8+ {[%clk 00:00:42]} Kg7 {[%clk 00:01:08]}
{[%emt 00:00:48]} 62. Rxf1 {[%clk 00:00:45]} Bxf1 {[%clk 00:01:15]} {[%emt
00:00:51]} 63. Qb2+ {[%clk 00:01:10]} Kf7 {[%clk 00:01:02]} {[%emt 00:00:48]}
64. Rh7+ {[%clk 00:01:32]} Kf8 {[%clk 00:01:15]} {[%emt 00:00:24]} 65. Qh8+
{[%clk 00:01:57]} Qg8 {[%clk 00:01:22]} {[%emt 00:00:28]} 66. Qf6+ {[%clk
00:02:13]} 1-0